fUSD/lending_fUSD_20250216
["ID","MTS","AMOUNT","RATE_DAILY","PERIOD"]
[353296664,1739742655168,-676.16,0.00011123,2]
[353296665,1739742655178,-500.0,0.00011123,2]
[353296666,1739742655187,-616.55,0.00011123,2]
[353296667,1739742655197,-500.0,0.00011123,2]
[353296668,1739742655207,-500.0,0.00011123,2]
[353296669,1739742655217,-500.0,0.00011123,2]
[353296670,1739742655226,-500.0,0.00011123,2]
[353296671,1739742655235,-662.98,0.00011123,2]
[353296672,1739742655246,-681.63,0.00011123,2]
[353296673,1739742655257,-500.0,0.00011123,2]
[353296674,1739742655266,-768.53,0.00011123,2]
[353296675,1739742655275,-1928.42,0.00011123,2]
[353296676,1739742655285,-1472.35,0.00011123,2]
[353296677,1739742655294,-500.0,0.00011123,2]
[353296678,1739742655303,-500.0,0.00011123,2]
[353296679,1739742655313,-1085.08,0.00011123,2]
[353296680,1739742655322,-1097.37,0.00011123,2]
[353296681,1739742655332,-1532.75,0.00011123,2]
[353296682,1739742655342,-1575.69,0.00011123,2]
[353296683,1739742655351,-800.35,0.00011123,2]
[353296684,1739742655361,-2696.32,0.00011123,2]
[353296685,1739742655370,-1998.61,0.00011123,2]
[353296686,1739742655380,-500.0,0.00011123,2]
[353296687,1739742655390,-601.4,0.00011123,2]
[353296688,1739742655399,-500.0,0.00011123,2]
[353296689,1739742655409,-846.39,0.00011123,2]
[353296690,1739742655419,-500.0,0.00011123,2]
[353296691,1739742655428,-1249.29,0.00011123,2]
[353296692,1739742655439,-500.0,0.00011123,2]
[353296693,1739742655448,-1062.89,0.00011123,2]
[353296694,1739742655458,-500.0,0.00011123,2]
[353296695,1739742655646,-500.0,0.00011123,2]
[353296696,1739742655657,-2010.66,0.00011123,2]
[353296697,1739742655667,-1292.55,0.00011123,2]
[353296698,1739742655677,-500.0,0.00011123,2]
[353296699,1739742655688,-1786.66,0.00011123,2]
[353296700,1739742655697,-500.0,0.00011123,2]
[353296701,1739742655707,-718.28,0.00011123,2]
[353296702,1739742655717,-500.0,0.00011123,2]
[353296703,1739742655727,-500.0,0.00011123,2]
[353296704,1739742655736,-500.0,0.00011123,2]
[353296705,1739742655745,-505.9,0.00011123,2]
[353296706,1739742655754,-500.0,0.00011123,2]
[353296707,1739742655763,-2309.43,0.00011123,2]
[353296708,1739742655772,-500.0,0.00011123,2]
[353296709,1739742655782,-500.0,0.00011123,2]
[353296710,1739742655791,-500.0,0.00011123,2]
[353296711,1739742655801,-841.82,0.00011123,2]
[353296712,1739742655811,-500.0,0.00011123,2]
[353296713,1739742655821,-1004.9,0.00011123,2]
[353296714,1739742655830,-500.0,0.00011123,2]
[353296715,1739742655839,-1051.25,0.00011123,2]
[353296716,1739742655848,-500.0,0.00011123,2]
[353296717,1739742655858,-500.0,0.00011123,2]
[353296718,1739742655867,-1465.9,0.00011123,2]
[353296719,1739742655876,-500.0,0.00011123,2]
[353296720,1739742655886,-1681.66,0.00011123,2]
[353296721,1739742655895,-500.0,0.00011123,2]
[353296722,1739742655905,-918.07,0.00011123,2]
[353296723,1739742655915,-1609.77,0.00011123,2]
[353296724,1739742655924,-514.70097954,0.00011123,2]
[353296725,1739742655933,-500.0,0.00011123,2]
[353296726,1739742655943,-500.0,0.00011123,2]
[353296727,1739742655953,-1735.61,0.00011123,2]
[353296728,1739742655962,-500.0,0.00011123,2]
[353296729,1739742655972,-500.0,0.00011123,2]
[353296730,1739742655982,-2197.25,0.00011123,2]
[353296731,1739742655992,-500.0,0.00011123,2]
[353296732,1739742656002,-500.0,0.00011123,2]
[353296733,1739742656011,-513.81,0.00011123,2]
[353296734,1739742656020,-500.0,0.00011123,2]
[353296735,1739742656030,-500.0,0.00011123,2]
[353296736,1739742656039,-500.0,0.00011123,2]
[353296737,1739742656049,-795.13,0.00011123,2]
[353296738,1739742656059,-685.8,0.00011123,2]
[353296739,1739742656069,-1539.81,0.00011123,2]
[353296740,1739742656080,-4849.07,0.00011123,2]
[353296741,1739742656092,-500.0,0.00011123,2]
[353296742,1739742656101,-500.0,0.00011123,2]
[353296743,1739742656110,-500.0,0.00011123,2]
[353296744,1739742656119,-472.85,0.00011123,2]
[353296745,1739742656130,-500.0,0.00011123,2]
[353296746,1739742656139,-500.0,0.00011123,2]
[353296747,1739742656149,-367.39092035,0.00011123,2]
[353296748,1739742656159,-500.0,0.00011123,2]
[353296749,1739742656168,-500.0,0.00011123,2]
[353296750,1739742656178,-500.0,0.00011123,2]
[353296751,1739742656187,-500.0,0.00011123,2]
[353296752,1739742656197,-500.0,0.00011123,2]
[353296753,1739742656206,-389.38,0.00011123,2]
[353296754,1739742656215,-500.0,0.00011123,2]
[353296755,1739742656225,-1017.77578108,0.00011132,2]
[353296756,1739742656234,-2115.7905,0.0001117,2]
[353296757,1739742656244,-500.0,0.00011203,2]
[353296758,1739742656253,-500.0,0.00011203,2]
[353296759,1739742656264,-500.0,0.00011203,2]
[353296760,1739742656274,-500.0,0.00011203,2]
[353296761,1739742656283,-500.0,0.00011203,2]
[353296762,1739742656293,-500.0,0.00011203,2]
[353296763,1739742656303,-500.0,0.00011203,2]
[353296764,1739742656313,-500.0,0.00011203,2]
[353296765,1739742656323,-203.38,0.00011203,2]
[353296766,1739742656333,-151.0,0.00011204,2]
[353296767,1739742656343,-1471.49,0.00011204,2]
[353296768,1739742656353,-922.85,0.00011204,2]
[353296769,1739742656363,-1666.95,0.00011204,2]
[353296770,1739742656373,-500.0,0.00011204,2]
[353296771,1739742656383,-1208.65,0.00011204,2]
[353296772,1739742656392,-1605.62,0.00011204,2]
[353296773,1739742656403,-2077.86,0.00011204,2]
[353296774,1739742656414,-1142.3,0.00011204,2]
[353296775,1739742656424,-1876.41,0.00011204,2]
[353296776,1739742656434,-553.47,0.00011204,2]
[353296777,1739742656443,-1626.88,0.00011204,2]
[353296778,1739742656453,-1146.64,0.00011204,2]
[353296779,1739742656463,-500.0,0.00011205,2]
[353296780,1739742656473,-500.0,0.00011205,2]
[353296781,1739742656482,-500.0,0.00011205,2]
[353296782,1739742656493,-500.0,0.00011205,2]
[353296783,1739742656503,-500.0,0.00011205,2]
[353296784,1739742656512,-500.0,0.00011205,2]
[353296785,1739742656523,-500.0,0.00011205,2]
[353296786,1739742656533,-500.0,0.00011205,2]
[353296787,1739742656543,-500.0,0.00011205,2]
[353296788,1739742656552,-500.0,0.00011205,2]
[353296789,1739742656562,-500.0,0.00011205,2]
[353296790,1739742656571,-500.0,0.00011205,2]
[353296791,1739742656581,-500.0,0.00011205,2]
[353296792,1739742656590,-500.0,0.00011205,2]
[353296793,1739742656600,-511.05199841,0.00011205,2]
[353296794,1739742656609,-500.0,0.00011205,2]
[353296795,1739742656619,-500.0,0.00011205,2]
[353296796,1739742656628,-500.0,0.00011205,2]
[353296797,1739742656638,-439.82202355,0.00011205,2]
[353296798,1739742656648,-523.60243882,0.00011205,2]
[353296799,1739742656657,-500.0,0.00011205,2]
[353296800,1739742656667,-161.74711926,0.00011205,2]
[353296801,1739742656676,-500.0,0.00011205,2]
[353296802,1739742656686,-500.0,0.00011205,2]
[353296803,1739742656696,-500.0,0.00011205,2]
[353296804,1739742656705,-500.0,0.00011205,2]
[353296805,1739742656715,-500.0,0.00011205,2]
[353296806,1739742656724,-500.0,0.00011205,2]
[353296807,1739742656734,-500.0,0.00011205,2]
[353296808,1739742656743,-500.0,0.00011205,2]
[353296809,1739742656753,-500.0,0.00011205,2]
[353296810,1739742656763,-500.0,0.00011205,2]
[353296811,1739742656772,-500.0,0.00011205,2]
[353296812,1739742656781,-500.0,0.00011205,2]
[353296813,1739742656791,-500.0,0.00011205,2]
[353296814,1739742656800,-500.0,0.00011205,2]
[353296815,1739742656809,-500.0,0.00011205,2]
[353296816,1739742656819,-500.0,0.00011205,2]
[353296817,1739742656828,-500.0,0.00011205,2]
[353296818,1739742656838,-500.0,0.00011205,2]
[353296819,1739742656847,-500.0,0.00011205,2]
[353296820,1739742656856,-500.0,0.00011205,2]
[353296821,1739742656866,-500.0,0.00011205,2]
[353296822,1739742656876,-500.0,0.00011205,2]
[353296823,1739742656885,-500.0,0.00011205,2]
[353296824,1739742656894,-500.0,0.00011205,2]
[353296825,1739742656904,-500.0,0.00011205,2]
[353296826,1739742656914,-500.0,0.00011205,2]
[353296827,1739742656924,-431.73007233,0.00011205,2]
[353296828,1739742656933,-166.74844746,0.00011205,2]
[353296829,1739742656943,-500.0,0.00011205,2]
[353296830,1739742656952,-500.0,0.00011205,2]
[353296831,1739742656961,-500.0,0.00011205,2]
[353296832,1739742656970,-500.0,0.00011205,2]
[353296833,1739742656980,-500.0,0.00011205,2]
[353296834,1739742656989,-471.95089188,0.00011205,2]
[353296835,1739742656998,-500.0,0.00011205,2]
[353296836,1739742657008,-500.0,0.00011205,2]
[353296837,1739742657018,-500.0,0.00011205,2]
[353296838,1739742657028,-500.0,0.00011205,2]
[353296839,1739742657037,-500.0,0.00011205,2]
[353296840,1739742657047,-588.54,0.00011205,2]
[353296841,1739742657058,-500.0,0.00011205,2]
[353296842,1739742657068,-527.23,0.00011205,2]
[353296843,1739742657078,-500.0,0.00011205,2]
[353296844,1739742657089,-500.0,0.00011205,2]
[353296845,1739742657101,-500.0,0.00011205,2]
[353296846,1739742657112,-500.0,0.00011205,2]
[353296847,1739742657122,-500.0,0.00011205,2]
[353296848,1739742657131,-600.0,0.00011205,2]
[353296849,1739742657142,-500.0,0.00011205,2]
[353296850,1739742657153,-500.0,0.00011205,2]
[353296851,1739742657164,-500.0,0.00011205,2]
[353296852,1739742657175,-773.53,0.00011205,2]
[353296853,1739742657184,-500.0,0.00011205,2]
[353296854,1739742657193,-629.01,0.00011205,2]
[353296855,1739742657202,-500.0,0.00011205,2]
[353296856,1739742657211,-500.0,0.00011205,2]
[353296857,1739742657220,-500.0,0.00011205,2]
[353296858,1739742657229,-545.39,0.00011205,2]
[353296859,1739742657238,-581.66,0.00011205,2]
[353296860,1739742657248,-500.0,0.00011205,2]
[353296861,1739742657259,-525.55,0.00011205,2]
[353296862,1739742657271,-500.0,0.00011205,2]
[353296863,1739742657285,-500.0,0.00011205,2]
[353296864,1739742657299,-500.0,0.00011205,2]
[353296865,1739742657311,-500.0,0.00011205,2]
[353296866,1739742657325,-500.0,0.00011205,2]
[353296867,1739742657339,-804.84,0.00011205,2]
[353296868,1739742657353,-500.0,0.00011205,2]
[353296869,1739742657366,-500.0,0.00011205,2]
[353296870,1739742657379,-500.0,0.00011205,2]
[353296871,1739742657391,-500.0,0.00011205,2]
[353296872,1739742657403,-982.12,0.00011205,2]
[353296873,1739742657417,-500.0,0.00011205,2]
[353296874,1739742657430,-500.0,0.00011205,2]
[353296875,1739742657444,-500.0,0.00011205,2]
[353296876,1739742657458,-500.0,0.00011205,2]
[353296877,1739742657472,-500.0,0.00011205,2]
[353296878,1739742657485,-500.0,0.00011205,2]
[353296879,1739742657499,-500.0,0.00011205,2]
[353296880,1739742657513,-500.0,0.00011205,2]
[353296881,1739742657526,-565.07,0.00011205,2]
[353296882,1739742657539,-500.0,0.00011205,2]
[353296883,1739742657553,-1208.65,0.00011205,2]
[353296884,1739742657566,-500.0,0.00011205,2]
[353296885,1739742657578,-500.0,0.00011205,2]
[353296886,1739742657589,-500.0,0.00011205,2]
[353296887,1739742657600,-597.45,0.00011205,2]
[353296888,1739742657613,-855.1,0.00011205,2]
[353296889,1739742657628,-500.0,0.00011205,2]
[353296890,1739742657638,-1108.48,0.00011205,2]
[353296891,1739742657649,-570.47,0.00011205,2]
[353296892,1739742657663,-500.0,0.00011205,2]
[353296893,1739742657676,-500.0,0.00011205,2]
[353296894,1739742657687,-1106.27,0.00011205,2]
[353296895,1739742657698,-500.0,0.00011205,2]
[353296896,1739742657710,-500.0,0.00011205,2]
[353296897,1739742657722,-500.0,0.00011205,2]
[353296898,1739742657733,-500.0,0.00011205,2]
[353296899,1739742657745,-877.71,0.00011205,2]
[353296900,1739742657757,-500.0,0.00011205,2]
[353296901,1739742657769,-500.0,0.00011205,2]
[353296902,1739742657781,-726.09,0.00011205,2]
[353296903,1739742657792,-599.23121729,0.00011205,2]
[353296904,1739742657804,-541.85,0.00011205,2]
[353296905,1739742657815,-500.0,0.00011205,2]
[353296906,1739742657827,-1071.49,0.00011205,2]
[353296907,1739742657839,-500.0,0.00011205,2]
[353296908,1739742657851,-749.73,0.00011205,2]
[353296909,1739742657864,-767.54,0.00011205,2]
[353296910,1739742657876,-726.53,0.00011205,2]
[353296911,1739742657887,-500.0,0.00011205,2]
[353296912,1739742657898,-500.0,0.00011205,2]
[353296913,1739742657910,-500.0,0.00011205,2]
[353296914,1739742657921,-684.820222,0.00011205,2]
[353296915,1739742657932,-580.47,0.00011205,2]
[353296916,1739742657944,-587.22,0.00011205,2]
[353296917,1739742657956,-500.0,0.00011205,2]
[353296918,1739742657967,-500.0,0.00011205,2]
[353296919,1739742657979,-500.0,0.00011205,2]
[353296920,1739742657990,-500.0,0.00011205,2]
[353296921,1739742658003,-500.0,0.00011205,2]
[353296922,1739742658015,-987.579306,0.00011205,2]
[353296923,1739742658027,-500.0,0.00011205,2]
[353296924,1739742658038,-500.0,0.00011205,2]
[353296925,1739742658050,-500.0,0.00011205,2]
[353296926,1739742658066,-500.0,0.00011205,2]
[353296927,1739742658079,-500.0,0.00011205,2]
[353296928,1739742658096,-500.0,0.00011205,2]
[353296929,1739742658109,-500.0,0.00011205,2]
[353296930,1739742658121,-500.0,0.00011205,2]
[353296931,1739742658135,-500.0,0.00011205,2]
[353296932,1739742658147,-500.0,0.00011205,2]
[353296933,1739742658160,-532.63,0.00011205,2]
[353296934,1739742658173,-518.7,0.00011205,2]
[353296935,1739742658185,-500.0,0.00011205,2]
[353296936,1739742658196,-500.0,0.00011205,2]
[353296937,1739742658209,-508.32,0.00011205,2]
[353296938,1739742658221,-500.0,0.00011205,2]
[353296939,1739742658233,-500.0,0.00011205,2]
[353296940,1739742658247,-1320.12,0.00011205,2]
[353296941,1739742658260,-500.0,0.00011205,2]
[353296942,1739742658275,-500.0,0.00011205,2]
[353296943,1739742658287,-610.47,0.00011205,2]
[353296944,1739742658299,-500.0,0.00011205,2]
[353296945,1739742658310,-500.0,0.00011205,2]
[353296946,1739742658322,-500.0,0.00011205,2]
[353296947,1739742658333,-603.88,0.00011205,2]
[353296948,1739742658345,-500.0,0.00011205,2]
[353296949,1739742658356,-930.63,0.00011205,2]
[353296950,1739742658368,-836.2,0.00011205,2]
[353296951,1739742658379,-500.0,0.00011205,2]
[353296952,1739742658391,-500.0,0.00011205,2]
[353296953,1739742658403,-712.78,0.00011205,2]
[353296954,1739742658416,-500.0,0.00011205,2]
[353296955,1739742658428,-500.0,0.00011205,2]
[353296956,1739742658441,-500.0,0.00011205,2]
[353296957,1739742658453,-500.0,0.00011205,2]
[353296958,1739742658464,-500.0,0.00011205,2]
[353296959,1739742658476,-500.0,0.00011205,2]
[353296960,1739742658487,-999.98,0.00011205,2]
[353296961,1739742658499,-843.76,0.00011205,2]
[353296962,1739742658510,-863.25,0.00011205,2]
[353296963,1739742658521,-500.0,0.00011205,2]
[353296964,1739742658532,-1040.19,0.00011205,2]
[353296965,1739742658543,-500.0,0.00011205,2]
[353296966,1739742658554,-841.54,0.00011205,2]
[353296967,1739742658566,-500.0,0.00011205,2]
[353296968,1739742658577,-500.0,0.00011205,2]
[353296969,1739742658588,-565.47,0.00011205,2]
[353296970,1739742658600,-854.5,0.00011205,2]
[353296971,1739742658612,-500.0,0.00011205,2]
[353296972,1739742658626,-500.0,0.00011205,2]
[353296973,1739742658638,-500.0,0.00011205,2]
[353296974,1739742658650,-839.28,0.00011205,2]
[353296975,1739742658663,-500.0,0.00011205,2]
[353296976,1739742658675,-500.0,0.00011205,2]
[353296977,1739742658687,-500.0,0.00011205,2]
[353296978,1739742658699,-1102.11,0.00011205,2]
[353296979,1739742658710,-500.0,0.00011205,2]
[353296980,1739742658722,-500.0,0.00011205,2]
[353296981,1739742658733,-1120.48,0.00011205,2]
[353296982,1739742658745,-500.0,0.00011205,2]
[353296983,1739742658757,-666.2,0.00011205,2]
[353296984,1739742658768,-500.0,0.00011205,2]
[353296985,1739742658780,-500.0,0.00011205,2]
[353296986,1739742658792,-701.22,0.00011205,2]
[353296987,1739742658803,-500.0,0.00011205,2]
[353296988,1739742658815,-500.0,0.00011205,2]
[353296989,1739742658826,-500.0,0.00011205,2]
[353296990,1739742658837,-583.21959265,0.00011205,2]
[353296991,1739742658849,-500.0,0.00011205,2]
[353296992,1739742658861,-500.0,0.00011205,2]
[353296993,1739742658872,-500.0,0.00011205,2]
[353296994,1739742658883,-500.0,0.00011205,2]
[353296995,1739742658895,-500.0,0.00011205,2]
[353296996,1739742658907,-534.30383799,0.00011205,2]
[353296997,1739742658919,-500.0,0.00011205,2]
[353296998,1739742658932,-500.0,0.00011205,2]
[353296999,1739742658944,-730.12,0.00011205,2]
[353297000,1739742658956,-500.0,0.00011205,2]
[353297001,1739742658968,-556.44,0.00011205,2]
[353297002,1739742658979,-500.0,0.00011205,2]
[353297003,1739742658991,-500.0,0.00011205,2]
[353297004,1739742659002,-500.0,0.00011205,2]
[353297005,1739742659013,-691.18,0.00011205,2]
[353297006,1739742659025,-959.53,0.00011205,2]
[353297007,1739742659037,-500.0,0.00011205,2]
[353297008,1739742659049,-500.0,0.00011205,2]
[353297009,1739742659061,-1279.74,0.00011205,2]
[353297010,1739742659073,-500.0,0.00011205,2]
[353297011,1739742659084,-500.0,0.00011205,2]
[353297012,1739742659098,-500.0,0.00011205,2]
[353297013,1739742659108,-500.0,0.00011205,2]
[353297014,1739742659117,-1064.34,0.00011205,2]
[353297015,1739742659126,-500.0,0.00011205,2]
[353297016,1739742659137,-684.81,0.00011205,2]
[353297017,1739742659146,-500.0,0.00011205,2]
[353297018,1739742659156,-500.0,0.00011205,2]
[353297019,1739742659166,-500.0,0.00011205,2]
[353297020,1739742659176,-500.0,0.00011205,2]
[353297021,1739742659185,-541.9015636,0.00011205,2]
[353297022,1739742659195,-500.0,0.00011205,2]
[353297023,1739742659204,-500.0,0.00011205,2]
[353297024,1739742659214,-948.86,0.00011205,2]
[353297025,1739742659225,-624.18662188,0.00011205,2]
[353297026,1739742659528,-500.0,0.00011205,2]
[353297027,1739742659543,-500.0,0.00011205,2]
[353297028,1739742659553,-500.0,0.00011205,2]
[353297029,1739742659562,-1205.36,0.00011205,2]
[353297030,1739742659572,-500.0,0.00011205,2]
[353297031,1739742659581,-572.75523483,0.00011205,2]
[353297032,1739742659591,-2644.03,0.00011205,2]
[353297033,1739742659600,-845.2,0.00011205,2]
[353297034,1739742659609,-500.0,0.00011205,2]
[353297035,1739742659619,-1299.48,0.00011205,2]
[353297036,1739742659628,-500.0,0.00011205,2]
[353297037,1739742659637,-2569.33,0.00011205,2]
[353297038,1739742659647,-500.0,0.00011205,2]
[353297039,1739742659656,-500.0,0.00011205,2]
[353297040,1739742659666,-500.0,0.00011205,2]
[353297041,1739742659675,-500.0,0.00011205,2]
[353297042,1739742659684,-1215.7,0.00011205,2]
[353297043,1739742659695,-500.0,0.00011205,2]
[353297044,1739742659704,-500.0,0.00011205,2]
[353297045,1739742659713,-597.66,0.00011205,2]
[353297046,1739742659722,-500.0,0.00011205,2]
[353297047,1739742659732,-500.0,0.00011205,2]
[353297048,1739742659741,-500.0,0.00011205,2]
[353297049,1739742659751,-500.0,0.00011205,2]
[353297050,1739742659760,-500.0,0.00011205,2]
[353297051,1739742659770,-2101.67,0.00011205,2]
[353297052,1739742659779,-415.48131057,0.00011205,2]
[353297053,1739742659789,-664.4,0.00011205,2]
[353297054,1739742659798,-1077.31,0.00011205,2]
[353297055,1739742659807,-500.0,0.00011205,2]
[353297056,1739742659818,-500.0,0.00011205,2]
[353297057,1739742659827,-935.69,0.00011205,2]
[353297058,1739742659836,-661.83,0.00011205,2]
[353297059,1739742659845,-1106.58,0.00011205,2]
[353297060,1739742659855,-500.0,0.00011205,2]
[353297061,1739742659865,-1835.67,0.00011205,2]
[353297062,1739742659875,-500.0,0.00011205,2]
[353297063,1739742659885,-2255.62,0.00011205,2]
[353297064,1739742659895,-505.48807296,0.00011205,2]
[353297065,1739742659905,-730.5,0.00011205,2]
[353297066,1739742659917,-500.0,0.00011205,2]
[353297067,1739742659927,-770.15,0.00011205,2]
[353297068,1739742659938,-1638.39,0.00011205,2]
[353297069,1739742659948,-500.0,0.00011205,2]
[353297070,1739742659957,-153.14856407,0.00011205,2]
[353297071,1739742659967,-578.74,0.00011205,2]
[353297072,1739742659977,-1003.64,0.00011205,2]
[353297073,1739742659987,-500.0,0.00011205,2]
[353297074,1739742659996,-500.0,0.00011205,2]
[353297075,1739742660006,-1650.35,0.00011205,2]
[353297076,1739742660016,-791.01,0.00011205,2]
[353297077,1739742660025,-1438.47,0.00011205,2]
[353297078,1739742660035,-500.0,0.00011205,2]
[353297079,1739742660045,-500.0,0.00011205,2]
[353297080,1739742660055,-500.0,0.00011205,2]
[353297081,1739742660064,-500.0,0.00011205,2]
[353297082,1739742660074,-500.0,0.00011205,2]
[353297083,1739742660084,-500.0,0.00011205,2]
[353297084,1739742660098,-475.25796285,0.00011205,2]
[353297085,1739742660107,-1575.58,0.00011205,2]
[353297086,1739742660116,-1536.64,0.00011205,2]
[353297087,1739742660125,-687.89,0.00011205,2]
[353297088,1739742660136,-500.0,0.00011205,2]
[353297089,1739742660145,-1036.62,0.00011205,2]
[353297090,1739742660154,-810.05,0.00011205,2]
[353297091,1739742660165,-500.0,0.00011205,2]
[353297092,1739742660176,-1605.64,0.00011205,2]
[353297093,1739742660186,-500.0,0.00011205,2]
[353297094,1739742660196,-500.0,0.00011205,2]
[353297095,1739742660205,-1465.61,0.00011205,2]
[353297096,1739742660215,-500.0,0.00011205,2]
[353297097,1739742660225,-500.0,0.00011205,2]
[353297098,1739742660235,-1869.66,0.00011205,2]
[353297099,1739742660245,-500.0,0.00011205,2]
[353297100,1739742660254,-2363.97,0.00011205,2]
[353297101,1739742660263,-946.33,0.00011205,2]
[353297102,1739742660273,-898.03,0.00011205,2]
[353297103,1739742660283,-500.0,0.00011205,2]
[353297104,1739742660292,-500.0,0.00011205,2]
[353297105,1739742660302,-790.18,0.00011205,2]
[353297106,1739742660311,-5281.57,0.00011205,2]
[353297107,1739742660321,-500.0,0.00011205,2]
[353297108,1739742660332,-1497.17,0.00011205,2]
[353297109,1739742660341,-500.0,0.00011205,2]
[353297110,1739742660352,-955.64,0.00011205,2]
[353297111,1739742660362,-1351.49,0.00011205,2]
[353297112,1739742660372,-522.19,0.00011205,2]
[353297113,1739742660382,-1462.67,0.00011205,2]
[353297114,1739742660392,-500.0,0.00011205,2]
[353297115,1739742660401,-1393.39,0.00011205,2]
[353297116,1739742660411,-918.71,0.00011205,2]
[353297117,1739742660421,-1445.68,0.00011205,2]
[353297118,1739742660431,-500.0,0.00011205,2]
[353297119,1739742660440,-500.0,0.00011205,2]
[353297120,1739742660451,-1262.94,0.00011205,2]
[353297121,1739742660460,-1096.78,0.00011205,2]
[353297122,1739742660470,-866.87,0.00011205,2]
[353297123,1739742660480,-500.0,0.00011205,2]
[353297124,1739742660490,-921.5,0.00011205,2]
[353297125,1739742660499,-500.0,0.00011205,2]
[353297126,1739742660509,-1703.44,0.00011205,2]
[353297127,1739742660519,-817.33,0.00011205,2]
[353297128,1739742660529,-1765.29,0.00011205,2]
[353297129,1739742660539,-500.0,0.00011205,2]
[353297130,1739742660549,-563.98,0.00011205,2]
[353297131,1739742660558,-500.0,0.00011205,2]
[353297132,1739742660567,-500.0,0.00011205,2]
[353297133,1739742660577,-1077.46,0.00011205,2]
[353297134,1739742660586,-500.0,0.00011205,2]
[353297135,1739742660596,-797.83,0.00011205,2]
[353297136,1739742660605,-2045.9,0.00011205,2]
[353297137,1739742660615,-500.0,0.00011205,2]
[353297138,1739742660623,-1027.79,0.00011205,2]
[353297139,1739742660632,-562.48,0.00011205,2]
[353297140,1739742660642,-919.02,0.00011205,2]
[353297141,1739742660651,-2070.46,0.00011205,2]
[353297142,1739742660660,-500.0,0.00011205,2]
[353297143,1739742660670,-500.0,0.00011205,2]
[353297144,1739742660680,-1269.5,0.00011205,2]
[353297145,1739742660689,-1764.9,0.00011205,2]
[353297146,1739742660699,-1920.38,0.00011205,2]
[353297147,1739742660709,-594.15,0.00011205,2]
[353297148,1739742660718,-500.0,0.00011205,2]
[353297149,1739742660727,-1514.45,0.00011205,2]
[353297150,1739742660737,-511.06005131,0.00011205,2]
[353297151,1739742660747,-500.0,0.00011205,2]
[353297152,1739742660757,-500.0,0.00011205,2]
[353297153,1739742660766,-3942.71,0.00011205,2]
[353297154,1739742660776,-500.0,0.00011205,2]
[353297155,1739742660785,-581.03,0.00011205,2]
[353297156,1739742660795,-500.0,0.00011205,2]
[353297157,1739742660804,-500.0,0.00011205,2]
[353297158,1739742660813,-500.0,0.00011205,2]
[353297159,1739742660822,-518.38,0.00011205,2]
[353297160,1739742660831,-2006.59,0.00011205,2]
[353297161,1739742660841,-500.0,0.00011205,2]
[353297162,1739742660851,-739.81,0.00011205,2]
[353297163,1739742660861,-500.0,0.00011205,2]